Cogmind - Beta 17.1 @@@ ROGUE MODE // 2026.09.22 @ 19:00:04 Player: Caluan Result: Destroyed by Shrapnel Trap Performance ------------- Evolutions (0) 0 Regions Visited (2) 400 Robots Destroyed (14) 70 Value Destroyed (513) 513 Prototype IDs (0) 0 Alien Tech Used (0) 0 Bonus (0) 0 TOTAL SCORE: 983 Bonus ------- None Cogmind --------- Core Integrity 0/250 Matter 300/300 Energy 99/100 System Corruption 1% Temperature Cool (0) Movement Rolling (120) Ox1 Location -10/Subcaves Parts ------- > --- POWER (1) -------- Subdweller Power Source > --- PROPULSION (2) --- Subdweller Monowheel > --- UTILITY (2) ------ Scrap Shield > --- WEAPON (2) ------- Battle Rifle > --- INVENTORY (5) ---- Aluminum Leg Dirty Datajack (20) Scrap Shield Fragment (48) Peak State ------------ > --- POWER ------------ Ion Engine > --- PROPULSION ------- Light Treads Subdweller Monowheel > --- UTILITY ---------- High-capacity Storage Unit > --- WEAPON ----------- Battle Rifle Subdweller Machine Gun > --- INVENTORY -------- Aluminum Leg Subdweller Optics Scrap Shield Assault Rifle Light Assault Rifle Dirty Datajack Dirty Datajack Hammer [Rating: 11] Favorites ----------- Power Ion Engine Engine Ion Engine Propulsion Light Treads Treads Light Treads Wheel Subdweller Monowheel Utility High-capacity Storage Unit Device Improved Heat Sink Storage High-capacity Storage Unit Protection Scrap Shield Weapon Medium Laser Energy Gun Medium Laser Ballistic Gun Battle Rifle Impact Weapon Hammer Build | -11 -10 -10 ------- Run | Yrd Mat Sub Slots Evolved . | . . . Power . | . . . Propulsion . | . . . Utility . | . . . Weapon . | . . . Parts Attached 16 | 5 2 9 Power 4 | 1 . 3 Engine 4 | 1 . 3 Core . | . . . Reactor . | . . . Propulsion 3 | 2 . 1 Treads 2 | 2 . . Leg . | . . . Wheel 1 | . . 1 Hover . | . . . Flight . | . . . Utility 3 | . 1 2 Device 1 | . 1 . Storage 1 | . . 1 Processor . | . . . Hackware . | . . . Protection 1 | . . 1 Artifact . | . . . Weapon 6 | 2 1 3 Energy Gun 1 | 1 . . Energy Cannon . | . . . Ballistic Gun 4 | 1 . 3 Ballistic Cannon . | . . . Launcher . | . . . Special Weapon . | . . . Impact Weapon 1 | . 1 . Slashing Weapon . | . . . Piercing Weapon . | . . . Special Melee Weapon . | . . . Unidentified Prototypes . | . . . Parts Lost 9 | . . 9 Power 2 | . . 2 Propulsion 2 | . . 2 Utility 1 | . . 1 Weapon 4 | . . 4 Highest Loss Streak 3 | . . 3 To Critical Strikes . | . . . Average Backups 6 | 3 3 6 Power . | . 1 . Propulsion . | . . . Utility 1 | . 1 1 Weapon 2 | 1 1 2 Tool/Special . | . . . Unused Backups 6 | . . 6 Power . | . . . Propulsion 1 | . . 1 Utility 2 | . . 2 Weapon 1 | . . 1 Tool/Special 2 | . . 2 Average Slot Usage (%) 74 | . 77 73 Engine 13 | . 14 13 Treads 14 | . 28 11 Wheel 6 | . . 8 Device 2 | . 6 1 Storage 10 | . . 12 Energy Gun 8 | . 14 7 Ballistic Gun 14 | . 11 15 Impact Weapon 1 | . 2 1 Peak Build Rating 11 | 5 8 11 Average Rating 8 | 2 6 9 On Entrance 4 | . 5 8 Avg Prop Armor Cover (%) 13 | . . 13 Naked Turns . | . . . Heaviest Build 51 | 9 10 51 Greatest Support 40 | 40 40 40 Greatest Overweight (x) 2 | 1 . 2 Average Overweight (x) 1 | . . 1 Largest Inventory Capacity 20 | 5 5 20 Average Capacity 15 | 5 5 18 Most Carried 10 | 5 5 10 Average Carried 6 | 3 3 7 Final Capacity 5 | 5 5 5 Final Carried 5 | 3 5 3 Class Distribution -------------------- 96% | Mutant 3% | Subdweller-Mutant Dominant Class ---------------- Mutant | -10/Materials Mutant | -10/Subcaves Resources | -11 -10 -10 ----------- Run | Yrd Mat Sub Matter Collected 562 | 195 120 247 Remotely . | . . . Salvage Created 620 | . 210 410 Parts 28 | . 5 23 Haulers Intercepted 1 | . 1 . Recyclers Shooed . | . . . Parts Field Recycled . | . . . Retrieved Matter . | . . . Parts Self-Destructed 16 | . . 16 Prevented . | . . . Parts Restored . | . . . Kills | -11 -10 -10 ------- Run | Yrd Mat Sub Combat Hostiles Destroyed 13 | . 4 9 Guns 13 | . 4 9 Classes Destroyed 3 | . 2 1 Hauler 1 | . 1 . Grunt 8 | . 4 4 Subdweller 5 | . . 5 Best Kill Streak 2 | . 2 2 Combat Bots Only 2 | . 2 2 Max Kills in Single Turn 1 | . 1 1 Gunslinging . | . . . Exploded . | . . . Melee . | . . . Uniques/NPCs Destroyed . | . . . Combat | -11 -10 -10 -------- Run | Yrd Mat Sub Hostile Shots Fired 80 | . 18 62 Missed 19 | . 5 14 Hits 61 | . 13 48 Projectile 61 | . 13 48 Critical Strikes 1 | . 1 . Damage Taken 1251 | . 155 1096 Core 262 | . 23 239 Absorbed by Shields . | . . . Core Remaining (%) 100 | 100 . . Volleys Fired 57 | . 15 42 Largest 2 | . 2 2 Hottest 80 | . 70 80 Shots Fired 113 | . 30 83 Gun 113 | . 30 83 Cannon . | . . . Launcher . | . . . Special . | . . . Kinetic 62 | . 15 47 Thermal 51 | . 15 36 Explosive . | . . . Electromagnetic . | . . . Robot Hit Streak 12 | . 12 12 Robot Miss Streak 3 | . 3 2 Penetration Max . | . . . Secondary Targets . | . . . Shots Hit Robots 87 | . 25 62 Core Hits 28 | . 9 19 Critical Kills . | . . . Critical Parts Destroyed . | . . . Critical Strikes 2 | . 2 . Burn 2 | . 2 . Melee Attacks 9 | . 2 7 Impact 9 | . 2 7 Slashing . | . . . Piercing . | . . . Sneak Attacks 1 | . 1 . Combat Hostiles . | . . . Follow-up Attacks . | . . . Damage Inflicted 1213 | . 362 851 Guns 1143 | . 292 851 Cannons . | . . . Explosions . | . . . Melee 70 | . 70 . Ramming . | . . . Kinetic 631 | . 131 500 Thermal 512 | . 161 351 Explosive . | . . . Electromagnetic . | . . . Impact 70 | . 70 . Slashing . | . . . Piercing . | . . . Highest Corruption 1 | . 1 1 Average Corruption 1 | . 1 1 Corruption Purged . | . . . Corruption Blocked . | . . . Effects 9 | . 1 8 Message Errors 1 | . . 1 Matter Fused 1 | . . 1 Energy Discharges 2 | . 1 1 Data Loss (major) 2 | . . 2 Alerts 3 | . . 3 Overload Shots . | . . . Overflow Damage 12 | . 12 . Projectiles . | . . . Explosions . | . . . Melee 12 | . 12 . Knockbacks . | . . . Impact . | . . . Kinetic . | . . . Secondary . | . . . Self-Inflicted Damage . | . . . Shots . | . . . Rammed 1 | . 1 . Targets Rammed 1 | . 1 . Kicked . | . . . Crushed . | . . . Highest Temperature 141 | . 141 9 Average Temperature 55 | . 68 4 Received Heat Transfer 315 | . 105 210 Siege Activations . | . . . Martial Activations . | . . . Shielding Activations . | . . . Robots Disrupted . | . . . Combat Hostiles . | . . . Robots Corrupted 1 | . 1 . Combat Hostiles . | . . . Parts Fried 1 | . 1 . Impact Corruptions 1 | . 1 . Robots Melted . | . . . Combat Hostiles . | . . . Parts Melted 5 | . 5 . Heat Transferred 1665 | . 629 1036 Parts Sabotaged . | . . . Parts Stolen . | . . . Parts Stripped . | . . . Power Chain Reactions . | . . . Alert | -11 -10 -10 ------- Run | Yrd Mat Sub Maximum Alert Level . | . . . Low Security (%) 100 | 100 100 . Level 1 . | . . . Level 2 . | . . . Level 3 . | . . . Level 4 . | . . . Level 5 . | . . . High Security . | . . . Max Security . | . . . Peak Influence 70 | . 70 . Initial . | . . . Average 17 | . 22 . Influence Increases 207 | . 107 100 Destroy 0b10 Robot/C 160 | . 80 80 Destroy 0b10 Robot/NC 5 | . 5 . Destroy Leader 42 | . 22 20 Influence Decreases 207 | . 107 100 Time Decay 207 | . 107 100 Squads Dispatched 1 | . 1 . Investigation . | . . . Extermination . | . . . Reinforcement 1 | . 1 . Assault . | . . . Garrison . | . . . Intercept . | . . . Searches Triggered . | . . . Construction Impeded . | . . . Haulers Reinforced . | . . . Active Scanning Responses . | . . . Cargo Convoy Interrupts . | . . . Stealth | -11 -10 -10 --------- Run | Yrd Mat Sub Distress Signals . | . . . Communications Jammed . | . . . Distress Signals . | . . . Times Spotted 14 | . 6 8 Peak Tracking Total 3 | . 3 2 Tactical Retreats . | . . . Traps | -11 -10 -10 ------- Run | Yrd Mat Sub Traps Triggered 8 | . 1 7 Indirectly . | . . . Trap Hack Attempts . | . . . Triggered . | . . . Disarmed . | . . . Reprogrammed . | . . . Reused . | . . . Traps Extracted . | . . . Installed . | . . . Triggered . | . . . Machines | -11 -10 -10 ---------- Run | Yrd Mat Sub Machines Disabled . | . . . Max in Single Turn . | . . . Machines Repaired . | . . . Machines Dismantled . | . . . Machines Sabotaged . | . . . Overloaded Fab Kills . | . . . Hacking | -11 -10 -10 --------- Run | Yrd Mat Sub Machines Accessed 2 | . . 2 Terminals . | . . . Fabricators . | . . . Repair Stations . | . . . Recycling Units . | . . . Scanalyzers . | . . . Garrison Access . | . . . Total Hacks 3 | . . 3 Successful 3 | . . 3 Failed . | . . . Catastrophic . | . . . Database Lockouts . | . . . Manual . | . . . Terminals . | . . . Fabricators . | . . . Repair Stations . | . . . Recycling Units . | . . . Scanalyzers . | . . . Garrison Access . | . . . Terminal Hacks 3 | . . 3 Record 1 | . . 1 Open Door 1 | . . 1 Release Object 1 | . . 1 Fabricator Hacks . | . . . Repair Station Hacks . | . . . Recycling Unit Hacks . | . . . Scanalyzer . | . . . Garrison Access Hacks . | . . . Unauthorized Hacks . | . . . Terminals . | . . . Fabricators . | . . . Repair Stations . | . . . Recycling Units . | . . . Scanalyzers . | . . . Garrison Access . | . . . Data Cores Recovered . | . . . Used . | . . . Hacking Detections . | . . . Full Trace Events . | . . . Feedback Events . | . . . Feedback Blocked . | . . . Robot Schematics Acquired . | . . . Robots Built . | . . . Authchips . | . . . Time . | . . . Total Robot Build Rating . | . . . Part Schematics Acquired . | . . . Parts Built . | . . . Authchips . | . . . Time . | . . . Total Part Build Rating . | . . . Part Studies Acquired . | . . . Parts Repaired . | . . . Time . | . . . Parts Recycled . | . . . Recycled Matter . | . . . Retrieved Matter . | . . . Retrieved Components . | . . . Parts Scanalyzed . | . . . Part Schematics Acquired . | . . . Parts Damaged . | . . . Bothacking | -11 -10 -10 ------------ Run | Yrd Mat Sub Used RIF Installer . | . . . Robots Hacked . | . . . Non-combat . | . . . Combat . | . . . Robot Hacks Applied . | . . . Relay Couplers Released . | . . . Fabnet Peak Effective % . | . . . Robots Rewired . | . . . Allies Hacked . | . . . Hacks Repelled . | . . . Allies | -11 -10 -10 -------- Run | Yrd Mat Sub Total Allies . | . . . Largest Group . | . . . Highest-Rated Group . | . . . Highest-Rated Ally . | . . . Total Orders . | . . . Ally Attacks . | . . . Total Damage . | . . . Kills . | . . . Allies Corrupted . | . . . Allies Melted . | . . . Intel | -11 -10 -10 ------- Run | Yrd Mat Sub Active Infowar (turns) . | . . . Robot Analysis Total . | . . . Derelict Logs Recovered . | . . . Drone Launches . | . . . Drone Recoveries . | . . . Exploration | -11 -10 -10 ------------- Run | Yrd Mat Sub Turns Passed 2171 | 96 302 1773 Spaces Moved 1188 | 75 128 985 Core 47 | 47 . . Treads 394 | 28 128 238 Legs . | . . . Wheels 747 | . . 747 Hover . | . . . Flight . | . . . Fastest Speed 50 | 50 160 120 Average Speed 156 | 113 160 159 Slowest Speed 320 | 160 160 320 Overloaded Moves . | . . . Propulsion Burnouts . | . . . Robots Hopped . | . . . Potential Cave-ins 1 | . . 1 Cave-ins Triggered . | . . . Exploration Rate (%) 26 | 3 39 37 Regions Visited 2 Branch Regions 1 Pre-discovered Areas . | . . . Known Exits Taken . | . . . Unknown Exits Taken 2 | 1 1 . Scrap Searched 1 | . . 1 Spaces Dug 4 | . . 4 Terrain Destroyed 5 | . . 5 Melee 4 | . . 4 Projectile 1 | . . 1 AOE . | . . . Terrain Rammed . | . . . Walls Destroyed . | . . . Machines Disabled . | . . . Actions | -11 -10 -10 --------- Run | Yrd Mat Sub Total 1360 | 86 190 1084 Wait 59 | . 39 20 Move 1187 | 74 128 985 Hop . | . . . Pick Up 22 | 7 3 12 Fast Attach 1 | 1 . . Attach 13 | 4 1 8 Detach . | . . . Swap 8 | . 2 6 Drop 4 | . . 4 Fire 57 | . 15 42 Melee 9 | . 2 7 Ram . | . . . Kick . | . . . Crush . | . . . Escape Stasis . | . . . Rewire . | . . . Trap . | . . . Miscellaneous . | . . . Route ------- -11/Scrapyard -10/Materials (discovered 3 exits: [*Mat] / [*Min] / *Sub) -10/Subcaves (discovered 1 exit: [*Mat]) History --------- Turn | Location | Event 11 | -11/Scrapyard | Discovered new exit (range 16) 97 | -11/Scrapyard | Entered Materials 265 | -10/Materials | Discovered new exit (range 12) 300 | -10/Materials | Build established: Mutant 363 | -10/Materials | Discovered new exit (range 12) 363 | -10/Materials | Discovered new exit (range 7) 399 | -10/Materials | Entered Subcaves 400 | -10/Subcaves | Approached by a straggling Scientist 698 | -10/Subcaves | Lost 3 parts (1p1n1u) 916 | -10/Subcaves | Core integrity fell below 50% 1360 | -10/Subcaves | Shifting Twisted Machinery released Sub. Machine Gun 1374 | -10/Subcaves | Shifting Twisted Machinery released Scrap Shield 1705 | -10/Subcaves | Discovered new exit (range 4) 2172 | -10/Subcaves | Destroyed by Shrapnel Trap Last Messages --------------- 01732_ Triggered Piercing Trap. 01732_ Spikes shoot up from the floor. 01732_ Critical hit (Impale). 01732_ Assault Rifle destroyed. 01732_ Critical hit (Impale). 01732_ Sub. Machine Gun destroyed. 01742_ Subatomizers dissect the Disposable Heat Sink. 01793_ System corrupted: IFF burst signal emitted. 01817_ Sub. Power Source shoots sparks and powers down. 01861_ Acquired 10 matter. 01929_ Acquired Scrap Shield Fragment. 02082_ Dropped Hcp. Storage Unit. 02102_ :CHAT5YTB>N3VQAS%TN4<9FDGQPO 02155_ Acquired 10 matter. 02172_ Triggered Shrapnel Trap. 02172_ An expanding cloud of shrapnel blasts out in all directions. Map ----- +----------------------------------------------------+ | ### #??????## ?? #????## | | #?# #???????# ? ????#" | | ### ### #??????? ? ???# | | #?# ## #?? ??? ? #??#" | | ### ##?# ?? ? #??# | | ## ###?? ?? ##### ? ##?## | | # ### ##???? ? ##????##??#?## | | # ##?# "##??### ?? ####???????????# | | #??#### " #### # ?????????????????## # | | #?##### """""" #????????????????##& ## | | ### & """"" ## ##????###????????# % ## | | ### !%! """ #?#"""###### ###?????## ## | | ###?# ### # "" ##?#"""""## ##?#### | | #??# ###??### #" ####" " ### | | ???## #???????# #" "# ### | | ????##????????# "#" ## ##?# | | ????????????### ##" ## #####??# ## ## | | ???????????##"" ###" ^ ####??????## ## #### | | ???????????#" "" " #??????????## ## ##??# | | ???????????#" " "" #???????????# ##???? | | ???????????#" ## ^" ###?????????## ####????? | | ???????????#" "### " #??????????####???????? | | ????????####"" """#### ##????????????????????? | | ????????# & "##### #" #????????????????????? | | ????????# " " ###" """ ##???????????????????? | | ????????# """< ""@"" #???????????????????? | | ????????#" " """ "" "##???????????????????? | | ????????# "& # ###### ## ###??????????????????? | | ????????####### ##?## ## ##?????????????????? | | ??????????????#"#??#" "" ##????????????????? | | ??????????????###??#" "" #????????????????? | | ???????????????????## ## #????????????????? | | ????????????????????## %#?# #????????????????? | | ?????????????????????# """#??####????????????????? | | ?????????????????????#""%"#??????????????????????? | | ?????????????????????#"""" #?????????????????????? | | ?????????????????????## ""##?????????????????????? | | ??????????????????????# #??????????????????????? | | ??????????????????????## %#??????????????????????? | | ???????????????????????####??????????????????????? | | ?????????????????????????????????????????????????? | | ?????????????????????????????????????????????????? | | ?????????????????????????????????????????????????? | | ?????????????????????????????????????????????????? | | ?????????????????????????????????????????????????? | | ?????????????????????????????????????????????????? | | ?????????????????????????????????????????????????? | | ?????????????????????????????????????????????????? | | ?????????????????????????????????????????????????? | | ?????????????????????????????????????????????????? | +----------------------------------------------------+ Best States ------------- Heat Dissipation 39 Energy Generation 15 Energy Capacity 250 Matter Stores 300 Matter Capacity 300 Sight Range 16 Terrain Scan Density 10 Armor Coverage 800 Evasion (%) 50 Recoil Reduction 2 Item Schematics ----------------- None Robot Schematics ------------------ None Fabricated ------------ Nothing Repaired ---------- Nothing Studied --------- None Alien Tech Used ----------------- None Achievements -------------- None Challenges ------------ None Game ------ Seed CombatNeutrinoCartridge Manual? 0 Play Time 00:08:41 Cumulative 321.6 hours Start 2026.09.22 @ 18:51:34 End 2026.09.22 @ 19:00:04 Sessions 1 Manual Loads 0 Difficulty Rogue Special Mode None Game No. 363 Rogue 363 Adventurer 0 Explorer 0 Win Type - Total 3 Types 3/0/0/0/0/0/0/0/0/0 Lore% 55 Gallery% 60 Achievement% 47 Wizard Run 0 Options --------- Layout 1 ASCII 0 Keyboard 0 Movement Numpad Keybinds 0 Fullscreen 2 Font 24/Smallcaps Map View 50x35 Zoom Use 0% Tactical HUD 1 Map Filters NONE Filters NONE Steam 1 RUN: 4679bd4a-e546-4f10-84c0-d2dc676a082e